[Event "GCT Superbet Rapid Poland 2025"]
[Site "Warsaw"]
[Date "2025.04.26"]
[Round "2.2"]
[White "Aronian, Levon"]
[Black "Vachier-Lagrave, Maxime"]
[Result "1/2-1/2"]
[ECO "E60"]
[WhiteElo "2747"]
[BlackElo "2722"]
[Annotator "TA"]
[PlyCount "134"]
[EventDate "2025.??.??"]
[EventType "rapid"]
[TimeControl "1500+10"]

{[%evp 9,134,34,31,0,0,1,20,23,16,-3,23,14,19,25,18,19,28,22,31,33,38,31,36,29,31,28,47,0,0,0,0,0,0,17,49,18,0,-12,-16,-2,0,-6,-12,-13,0,0,0,0,0,0,0,0,0,0,55,72,66,58,95,73,87,54,58,57,86,22,13,18,18,11,40,35,47,0,39,20,10,14,43,0,0,0,0,0,0,0,0,0,0,0,0,0,4,0,18,13,19,0,0,0,0,0,0,0,0,0,0,0,0,0,0,0,0,0,0,0,0,0,0,0,0,0,0,0,0,0,0]} 1. d4 {[%emt 0:00:04]} Nf6 {[%emt 0:00:02]} 2. c4 {[%emt 0:00:01]} g6 {[%emt 0:00:01]} 3. f3 {[%emt 0:00:01]} c5 {[%emt 0:00:02]} 4. d5 {[%emt 0:00:02]} d6 {[%emt 0:00:02]} 5. Nc3 {[%emt 0:00:01]} ({RR} 5. e4 Bg7 6. Ne2 O-O 7. Nec3 e5 8. g4 Ne8 9. h4 Bf6 10. Qd2 Bxh4+ 11. Kd1 g5 12. Na3 Kg7 13. Nc2 Rg8 14. a3 a6 15. Bd3 Nf6 16. b4 b6 17. Ne3 Bg3 18. Ne2 Bf2 19. bxc5 bxc5 {Ethereal 14.40 (3545)-KomodoDragon 3.3 (3583) tcec-chess.com INT 2024 1-0 (144)}) ({RR} 5. e4 e6 6. Nc3 Bg7 7. dxe6 Bxe6 8. Bf4 O-O 9. Bxd6 Re8 10. Bf4 Nc6 11. Be2 Nd4 12. Kf2 Nh5 13. Bg3 f5 14. exf5 Bxf5 15. Bd3 Qb6 16. Rb1 Rad8 17. Nd5 Rxd5 {0-1 (17) Zobel,C (2188)-Poltorak,S (2407) Berlin GER 2025}) 5... e6 {[%emt 0:00:02]} 6. Kf2 $146 {[%emt 0:00:09] E60: King's Indian: Unusual lines and Fianchetto Variation without Nc3.} (6. e4 Bg7 7. Nge2 a6 8. a4 Qe7 9. dxe6 fxe6 10. Bf4 e5 11. Bg5 Nc6 12. Nd5 {1-0 Aronian,L (2739)-Vachier Lagrave,M (2737) Chennai-A 2024 (5)}) ({RR} 6. e4 Bg7 7. Nge2 a6 8. a4 Qe7 9. dxe6 fxe6 10. Bf4 e5 11. Bg5 Nc6 12. Nd5 Qd8 13. Nec3 Nd4 14. Bd3 O-O 15. O-O Be6 16. Ne2 Nxe2+ 17. Bxe2 Rf7 18. Qd2 Qf8 19. Nb6 Rd8 20. Rad1 h6 {Aronian,L (2739)-Vachier Lagrave,M (2737) Chennai IND 2024 1-0 (44)}) ({RR} 6. e4 exd5 7. exd5 Bg7 8. Qe2+ Kd7 9. Qc2 Re8+ 10. Nge2 Ke7 11. Bf4 a6 12. O-O-O Kf8 13. Ng3 b5 14. cxb5 Kg8 15. Kb1 Qb6 16. Qb3 axb5 17. Bxb5 Rd8 18. Rhe1 Bb7 19. Nge4 Nxe4 20. Nxe4 Na6 {Paduano,C (2197)-Zamengo,F (2339) Parma ITA 2024 1-0 (50)}) ({RR} 6. e4 Bg7 7. Bg5 a6 8. a4 h6 9. Be3 Qe7 10. Qd2 a5 11. Nb5 e5 12. Bxc5 dxc5 13. d6 Nxe4 14. dxe7 Nxd2 15. Nc7+ Kd7 16. Nxa8 Nb3 17. Rd1+ Kc6 18. Rd8 Bd7 19. Bd3 f5 20. Ne2 Kd6 {Martinovici,I (2432)-Bettalli,F (2274) Pula (Sardinia) ITA 2023 1-0 (38)}) 6... exd5 {[%emt 0:01:06]} 7. cxd5 {[%emt 0:00:02]} a6 {[%emt 0:00:01]} 8. a4 {[%emt 0:00:01]} Nbd7 {[%emt 0:00:06]} 9. g3 {[%emt 0:00:07]} h5 {[%emt 0:00:21]} 10. h4 {[%emt 0:00:42]} Ne5 {[%emt 0:00:30]} 11. Kg2 {[%emt 0:00:04]} Bg7 {[%emt 0:00:26]} 12. e4 {[%emt 0:00:09]} Nh7 {[%emt 0:00:37]} 13. Nh3 {[%emt 0:00:10]} O-O {[%emt 0:00:45]} 14. Nf4 {[%emt 0:01:28]} Rb8 {[%emt 0:00:22]} 15. a5 {[%emt 0:02:01]} b5 {[%emt 0:00:41]} 16. axb6 {[%emt 0:00:06]} Rxb6 {[%emt 0:00:01]} 17. Be2 {[%emt 0:00:29]} Bd7 {[%emt 0:00:29]} 18. Rxa6 {[%emt 0:01:37]} (18. Ra2 $14 {feels stronger.}) 18... Rxa6 $11 {[%emt 0:01:15] Black sacrificed a pawn} 19. Bxa6 {[%emt 0:00:01]} c4 $1 {[%emt 0:00:22] [#] Repels Nd3} 20. Bb5 {[%emt 0:02:26]} Bxb5 {[%emt 0:00:03]} 21. Nxb5 {[%emt 0:00:01]} Qa5 {[%emt 0:00:01]} (21... Qb6 22. Na3 Rb8 23. Re1 Nf6) 22. Nc3 {[%emt 0:00:23]} (22. Nxd6 Qb4 23. Nxc4 Qxc4 $17 (23... Nxc4 24. b3 $17)) 22... Rb8 {[%emt 0:00:02]} 23. Re1 {[%emt 0:00:21]} Nf6 {[%emt 0:00:17][%mdl 1024] Black has compensation.} 24. Qa4 {[%emt 0:01:33] Repels Nfd7} Qc7 {[%emt 0:00:59]} 25. Qa3 {[%emt 0:02:03]} Nfd7 {[%emt 0:00:52]} 26. Be3 {[%emt 0:00:02]} Rb3 {[%emt 0:01:16]} 27. Qa8+ {[%emt 0:00:07]} Kh7 {[%emt 0:00:03]} 28. Re2 {[%emt 0:00:28]} Rb8 {[%emt 0:01:12]} 29. Qa7 {[%emt 0:00:29]} Qc8 {[%emt 0:01:05]} 30. Qa3 {[%emt 0:03:22][%cal Of4h3]} Ra8 {[%emt 0:00:02]} 31. Qb4 {[%emt 0:00:01]} (31. Qxd6 $2 Bf8 $19) 31... Ra1 {[%emt 0:00:25]} ({Black should try} 31... Rb8 $11 32. Qa4 (32. Qxd6 $2 Bf8 $19) 32... Kg8) 32. Nh3 $1 $14 {[%emt 0:00:34][%cal Of3f4] Active counter play!} (32. Qxd6 $2 Bf8 $19) 32... Kg8 {[%emt 0:01:17]} 33. Ng5 {[%emt 0:00:16][%cal Of3f4]} (33. Qxd6 $2 Bf8 $19) 33... Bf8 {[%emt 0:02:35]} 34. Qb5 {[%emt 0:01:41]} Ra8 {[%emt 0:00:28]} 35. Nd1 {[%emt 0:00:40]} Rb8 {[%emt 0:00:20]} 36. Qa4 {[%emt 0:00:37]} Be7 {[%emt 0:00:57] [#]} 37. Nf2 {[%emt 0:00:41]} ({White should play} 37. f4 $1 $16 {[%cal Rf4e5]} Nd3 38. Nf2) 37... Nc5 $11 {[%emt 0:00:46]} 38. Bxc5 {[%emt 0:00:39]} Qxc5 {[%emt 0:00:02]} 39. f4 {[%emt 0:00:11]} Nd3 {[%emt 0:01:00][%cal Be5d3,Bd3b2,Bb2a4,Ba4c5][%mdl 32]} 40. Nf3 {[%emt 0:00:03]} Nxb2 {[%emt 0:02:13]} 41. Qc6 {[%emt 0:00:19]} (41. Qd7 $14 Kf8 42. f5) 41... Qxc6 {[%emt 0:02:18]} 42. dxc6 {[%emt 0:00:02][%cal Oe2b2]} c3 {[%emt 0:00:01]} 43. Rc2 {[%emt 0:02:31][%cal Oc6c7] and c7! would now be decisive} Na4 {[%emt 0:00:03]} 44. Ra2 {[%emt 0:00:09]} Nc5 {[%emt 0:00:10] The position is equal.} 45. Ra3 {[%emt 0:00:58]} Rc8 {[%emt 0:00:04]} (45... c2 {seems wilder.} 46. Rc3 Rc8 47. Nd4 Bf6) 46. Rxc3 {[%emt 0:00:19]} Rxc6 {[%emt 0:00:02]} 47. Nd3 {[%emt 0:00:26]} Ra6 {[%emt 0:00:24]} 48. Nxc5 {[%emt 0:00:11]} Ra2+ {[%emt 0:00:02]} 49. Kf1 {[%emt 0:00:18]} dxc5 {[%emt 0:00:02][%mdl 4096] Endgame KRB-KRN} 50. Ne5 {[%emt 0:00:01]} Ra4 {[%emt 0:01:45]} 51. Nc4 {[%emt 0:00:04]} Bf6 {[%emt 0:00:48]} 52. e5 {[%emt 0:00:04]} Be7 {[%emt 0:00:01]} 53. Ke2 {[%emt 0:00:20]} f6 {[%emt 0:00:15]} 54. Kd3 {[%emt 0:01:03]} fxe5 {[%emt 0:00:45]} 55. Nxe5 {[%emt 0:00:36]} Bf6 {[%emt 0:00:10]} 56. Rxc5 {[%emt 0:00:47]} Bxe5 {[%emt 0:00:02]} 57. fxe5 {[%emt 0:00:15] KR-KR. White is a pawn up.} Kf7 {[%emt 0:00:15]} 58. Rc7+ {[%emt 0:00:38]} Ke6 {[%emt 0:01:06]} 59. Rc6+ {[%emt 0:00:02]} Kxe5 {[%emt 0:00:01] Threatens to win with ...Ra3+.} 60. Rxg6 {[%emt 0:00:01]} Ra3+ {[%emt 0:00:01]} 61. Kc4 {[%emt 0:00:45]} Ke4 {[%emt 0:01:35]} 62. Rg5 {[%emt 0:00:02]} Ra8 {[%emt 0:01:05]} 63. Kb5 {[%emt 0:00:57]} Kf3 {[%emt 0:00:06]} 64. Kc6 {[%emt 0:00:13]} Rd8 {[%emt 0:00:04]} 65. Rxh5 {[%emt 0:00:32]} Kxg3 {[%emt 0:00:01]} 66. Rd5 {[%emt 0:00:01]} Rxd5 {[%emt 0:00:01]} 67. Kxd5 {[%emt 0:00:01] White wants to mate with h5.} Kxh4 {Weighted Error Value: White=0.08 (flawless) /Black=0.07 (flawless)  Mistake:    	White=3   	Black=1   Inaccurate:   	White=3   	Black=6   OK:     	White=21  	Black=33   Best:    	White=3   	Black=4   Strong:    	White=1   	Black=1} 1/2-1/2

[Event "GCT Superbet Rapid Poland 2025"]
[Site "Warsaw"]
[Date "2025.04.26"]
[Round "2.3"]
[White "Firouzja, Alireza"]
[Black "Deac, Bogdan-Daniel"]
[Result "1-0"]
[ECO "A06"]
[WhiteElo "2757"]
[BlackElo "2668"]
[Annotator "TA"]
[PlyCount "79"]
[EventDate "2025.??.??"]
[EventType "rapid"]
[TimeControl "1500+10"]

{[%evp 9,79,7,7,-11,5,2,25,22,30,21,48,17,37,8,12,0,-2,-27,0,0,77,10,79,-6,61,48,81,70,84,14,11,10,12,12,12,0,0,0,0,-27,-13,-85,-61,-163,-155,-157,-30,-48,-17,-74,-76,-82,490,493,480,491,659,422,424,420,514,499,519,531,623,616,682,674,583,551,545,514]} 1. Nf3 {[%emt 0:00:02]} d5 {[%emt 0:00:01]} 2. b3 {[%emt 0:00:01]} c5 {[%emt 0:00:17]} 3. e3 {[%emt 0:00:03]} a6 {[%emt 0:00:02]} 4. Bb2 {[%emt 0:00:20]} Nc6 {[%emt 0:00:02]} 5. g3 {[%emt 0:00:17]} d4 {[%emt 0:02:28]} ({RR} 5... Bf5 6. Bg2 Nf6 7. O-O e6 8. Nh4 Be4 9. f3 Bg6 10. d3 Bd6 11. Nxg6 hxg6 12. f4 Qe7 13. c4 Rd8 14. Nd2 Bc7 15. Qe2 O-O 16. Rad1 Rfe8 17. e4 dxc4 18. Nxc4 Nd4 19. Bxd4 Rxd4 20. Ne3 {Nakamura,H (2760)-Fedoseev,V (2686) Chess.com INT 2022 0-1 (42)}) 6. Qe2 $146 {[%emt 0:00:29] A06: Réti Opening: 1 Nf3 d5.} (6. Bg2 g6 7. O-O Bg7 8. exd4 cxd4 9. Na3 Rb8 10. c4 Nh6 11. Re1 O-O 12. d3 b5 {1-0 Keymer,V (2690)-Deac,B (2693) Biel Blitz 56th 2023 (8)}) ({RR} 6. exd4 cxd4 7. Bg2 g6 8. O-O Bg7 9. c4 dxc3 10. dxc3 Bf5 11. Nh4 Be6 12. Qe2 Nf6 13. Rd1 Qa5 14. c4 O-O 15. Nc3 Rad8 16. Nf3 Bg4 17. Qe3 Qh5 18. Ne2 e5 19. Rxd8 Rxd8 20. Nxe5 Bxe2 {Wei,Y (2707)-Inarkiev,E (2709) Doha 2016 0-1 (33)}) ({RR} 6. Bg2 e5 7. O-O Bd6 8. exd4 cxd4 9. c3 d3 10. Na3 Nge7 11. Nc4 Bc7 12. Re1 f6 13. a4 O-O 14. Ba3 Re8 15. Qb1 Be6 16. Nb2 Bxb3 17. Nxd3 Bf7 18. Nc5 b6 19. Ne4 Qd7 20. d4 exd4 {Dubov,D (2701)-Khayrullin,D (2399) Moscow RUS 2025 ½-½ (56)}) ({RR} 6. Bg2 g6 7. exd4 Bg7 8. c3 cxd4 9. c4 Nh6 10. O-O O-O 11. d3 Bf5 12. Na3 e5 13. Nh4 Bg4 14. Qd2 Nf5 15. Nxf5 Bxf5 16. b4 Re8 17. Nc2 Qd7 18. Rfe1 b5 19. c5 Bh3 20. Bh1 Be6 {Deac,B (2700)-Bluebaum,M (2661) chess.com INT 2023 0-1 (37)}) ({RR} 6. Bg2 g6 7. O-O Bg7 8. c4 Nh6 9. exd4 cxd4 10. d3 O-O 11. Nbd2 a5 12. a3 e5 13. Rc1 f6 14. c5 Be6 15. Nc4 Qc7 16. Re1 Nf7 17. Nfd2 f5 18. Rb1 Na7 19. b4 axb4 20. axb4 Nb5 {Bharath,S (2503)-Srihari,L (2398) Pollachi 2022 0-1 (53)}) ({RR} 6. exd4 cxd4 7. Bg2 g6 8. O-O Bg7 9. Re1 Nh6 10. c3 O-O 11. cxd4 Nf5 12. Nc3 Nfxd4 13. Nxd4 Nxd4 14. d3 Ra7 15. Qd2 b5 16. Ne2 Bf5 17. Nxd4 Bxd4 18. Rad1 Rd7 19. Bxd4 Rxd4 20. Qc3 e6 {Baskakov,E (2215)-Bluebaum,M (2657) chess.com INT 2022 0-1 (64)}) 6... Bf5 {[%emt 0:08:35]} 7. d3 {[%emt 0:00:23]} Qd7 {[%emt 0:05:01]} 8. Nbd2 {[%emt 0:00:52] White has an edge.} f6 {[%emt 0:00:16]} 9. Bg2 {[%emt 0:04:38]} Nh6 {[%emt 0:05:31]} 10. O-O {[%emt 0:00:30][%cal Ob3b4]} Rd8 {[%emt 0:03:19]} 11. Nc4 {[%emt 0:07:54]} e5 {[%emt 0:00:32]} 12. exd4 {[%emt 0:02:29]} cxd4 {[%emt 0:00:08]} 13. Nfd2 {[%emt 0:00:02]} Be7 {[%emt 0:00:55]} 14. f4 {[%emt 0:00:02]} (14. Bxc6 $2 Qxc6 15. Qh5+ Bg6 $17) 14... exf4 {[%emt 0:00:01]} (14... Bg4 $11 15. Qe4 Bf5) 15. Rae1 {[%emt 0:03:13] White sacrificed a pawn} (15. Bxc6 Qxc6 16. Ba3 Rd7 $11) (15. Rxf4 $16 {Re1 is the strong threat.} O-O 16. Nb6) 15... Bg4 {[%emt 0:00:03]} (15... O-O $1 $11) 16. Qe4 {[%emt 0:00:04] White is much more active.} (16. Bxc6 $1 $16 bxc6 17. Qe4) 16... O-O {[%emt 0:00:16]} (16... fxg3 $11 17. Ba3 gxh2+ 18. Kh1 Kf8 (18... f5 19. Qf4 $14) 19. Bxe7+ Qxe7) 17. Nb6 $14 {[%emt 0:02:17]} Qf5 {[%emt 0:00:16]} 18. Qxf5 {[%emt 0:01:03]} (18. Rxf4 Qh5 19. h3 Bxh3 $19) (18. Qxf4 Bb4 19. Bc1 Qxf4 20. Rxf4 Bc5 $14) 18... Nxf5 {[%emt 0:00:02]} 19. Rxf4 {[%emt 0:01:23]} (19. h3 $16) 19... Bb4 $1 $11 {[%emt 0:00:21]} 20. Rxg4 {[%emt 0:00:16]} Bxd2 {[%emt 0:00:02]} 21. Re2 {[%emt 0:00:01]} Be3+ {[%emt 0:00:08]} 22. Kh1 {[%emt 0:00:10]} Ne5 {[%emt 0:00:19]} 23. Re4 {[%emt 0:00:02]} Nd6 {[%emt 0:00:07] Prevents Nc4.} 24. Rh4 {[%emt 0:00:17][%cal Ob6d5]} g5 $36 {[%emt 0:00:12][%mdl 2048] Black fights for an advantage.} 25. Rh3 {[%emt 0:01:05] [#]} (25. Rxd4 $11 Bxd4 26. Bxd4) 25... Ng4 $1 $17 {[%emt 0:00:12]} 26. Bd5+ {[%emt 0:00:24]} (26. Ba3 $15) 26... Kg7 $19 {[%emt 0:00:10]} 27. Kg2 {[%emt 0:00:01] [#]} Rfe8 {[%emt 0:00:04][%csl Oe3] Strong Square Black (e3)} (27... f5 $1 $17 {...Nf6 is the strong threat.} 28. Kf1 Nf6) 28. Bf3 $1 $11 {[%emt 0:00:56]} Ne5 {[%emt 0:00:03] Excellent horsemanship.} 29. Bh5 {[%emt 0:00:10]} (29. g4 $1 $11 {keeps the balance.}) 29... Re6 $17 {[%emt 0:00:09]} 30. g4 {[%emt 0:00:03] Repels Nf5} f5 $2 {[%emt 0:00:27][%mdl 8192] This move loses the game for Black.} (30... Nb5 $17 31. Nc4 Bf4) 31. Rhxe3 {[%emt 0:00:12]} dxe3 {[%emt 0:00:03]} 32. Rxe3 {[%emt 0:00:00]} Kh6 {[%emt 0:00:16]} 33. Rxe5 {[%emt 0:00:27]} Rxe5 {[%emt 0:00:03]} 34. Bxe5 {[%emt 0:00:01]} Nb5 {[%emt 0:00:11]} 35. Nc4 {[%emt 0:00:03] White is clearly winning.} fxg4 {[%emt 0:00:06]} 36. Bxg4 {[%emt 0:00:03]} Kg6 {[%emt 0:00:01]} 37. Bf3 {[%emt 0:00:07]} Nd4 {[%emt 0:00:01]} 38. Be4+ {[%emt 0:00:17]} Kh5 {[%emt 0:00:02]} 39. Bxd4 {[%emt 0:00:08]} Rxd4 {[%emt 0:00:01]} 40. Bxb7 {[%emt 0:00:01] Weighted Error Value: White=0.32/Black=0.53 Loses game: 	--- 	Black=1 Mistake: 	White=6 	Black=4 Inaccurate: 	White=4 	Black=5 OK: 	White=4 	Black=6 Best: 	White=3 	Black=2 Strong: 	White=1 	Black=2} 1-0

[Event "GCT Superbet Rapid Poland 2025"]
[Site "Warsaw"]
[Date "2025.04.26"]
[Round "2.4"]
[White "Fedoseev, Vladimir"]
[Black "Gavrilescu, David"]
[Result "1-0"]
[ECO "E04"]
[WhiteElo "2739"]
[BlackElo "2554"]
[Annotator "TA"]
[PlyCount "35"]
[EventDate "2025.??.??"]
[EventType "rapid"]
[TimeControl "1500+10"]

{[%evp 16,35,13,14,61,8,24,10,18,16,74,78,81,71,75,70,89,83,81,93,497,485]} 1. d4 {[%emt 0:00:02]} d5 {[%emt 0:00:06]} 2. c4 {[%emt 0:00:03]} e6 {[%emt 0:00:03]} 3. Nf3 {[%emt 0:00:03]} Nf6 {[%emt 0:00:05]} 4. g3 {[%emt 0:00:26]} dxc4 {[%emt 0:00:20]} 5. Bg2 {[%emt 0:00:03]} c5 {[%emt 0:00:07]} 6. O-O {[%emt 0:00:04]} Nc6 {[%emt 0:00:06]} 7. dxc5 {[%emt 0:00:03]} Qxd1 {[%emt 0:00:10]} 8. Rxd1 {[%emt 0:00:02]} Bxc5 {[%emt 0:00:04]} 9. Nbd2 {[%emt 0:00:03]} b5 {[%emt 0:00:08] E04: Open Catalan: 5 Nf3.} (9... c3 $11 10. bxc3 O-O) 10. Ng5 $146 {[%emt 0:05:50][%mdl 8] White sacrificed a pawn A relevant novelty.} (10. Ne5 $14 Nxe5 11. Bxa8) (10. a4 Ba6 11. Ng5 Nd5 12. Nde4 Bb4 13. Nxf7 Kxf7 14. Ng5+ Kf6 15. Nxe6 Nce7 16. axb5 Bb7 17. Nd4 Kf7 18. Ra4 c3 19. Rd3 a5 20. bxc3 Bxc3 21. Rf3+ Kg6 22. Nc6 Bf6 23. Ne5+ {1-0 Harikrishna,P (2695)-Warmerdam,M (2646) Tata Steel-A 87th 2025 (4)}) ({RR} 10. a4 Ba6 11. Ng5 Nd5 12. Nde4 Bb4 13. Nc3 {½-½ (13) Thybo,J (2575)-Korpa,B (2536) Benasque 2021}) ({RR} 10. a4 Ba6 11. Ng5 Nd5 12. Nde4 Bb4 13. Nc3 Bxc3 14. bxc3 b4 15. Ne4 O-O 16. Nc5 Bc8 17. cxb4 Ncxb4 18. Ba3 Nc2 19. Ra2 Nxa3 20. Rxa3 Rb8 21. e4 Nf6 22. Rc3 Rb4 23. Bf1 e5 24. f3 h5 {Keymer,V (2664)-Aronian,L (2772) chess24.com INT 2022 ½-½ (74)}) ({RR} 10. a4 Ba6 11. Ng5 Nd5 12. Nde4 Bb4 13. Nxf7 Kxf7 14. Ng5+ Kf6 15. Nxe6 Nce7 16. axb5 Bb7 17. Nd4 Kf7 18. Ra4 c3 19. Rd3 a5 20. bxc3 Bxc3 21. Rf3+ Kg6 22. Nc6 Bf6 23. Ne5+ {1-0 (23) Harikrishna,P (2695)-Warmerdam,M (2646) Wijk aan Zee NED 2025}) ({RR} 10. a4 Ba6 11. axb5 Bxb5 12. Ne5 Rc8 13. Nxc6 Bxc6 14. Nxc4 {½-½ (14) Lodici,L (2487)-Warmerdam,M (2535) Villorba 2021}) 10... Bb7 {[%emt 0:03:15]} 11. a4 {[%emt 0:00:42] aiming for Nge4.} a6 {[%emt 0:01:22] The position is equal.} 12. Nde4 {[%emt 0:00:08]} Bb4 {[%emt 0:02:00]} (12... Be7 $11 {remains equal.}) 13. Nxf6+ {[%emt 0:02:26]} gxf6 {[%emt 0:00:03] [#]} 14. Nxf7 {[%emt 0:00:03] White is more active.} Kxf7 {[%emt 0:04:02]} 15. Rd7+ {[%emt 0:00:02] White attacks} Kg6 {[%emt 0:00:26] Strongly threatening ...Rhd8.} 16. Rxb7 {[%emt 0:00:04]} Nd4 {[%emt 0:00:05][%cal Oa8b8]} 17. Be3 {[%emt 0:00:18] This pair of bishops is nice.} e5 {[%emt 0:03:19][%mdl 8192]} (17... Nb3 $16 18. Rd1 Rad8 19. Be4+ f5) 18. axb5 {[%emt 0:00:13] Weighted Error Value: White=0.10 (very precise) /Black=0.77 Loses game: 	--- 	Black=1 Mistake: 	White=1 	Black=1 OK: 	White=3 	Black=2 Best: 	White=2 	--- Brilliant: 	White=1 	---} 1-0